fUSD/lending_fUSD_20260108
["ID","MTS","AMOUNT","RATE_DAILY","PERIOD"]
[400915389,1767862239770,-500.0,0.00013473,2]
[400915391,1767862239779,-1500.0,0.00013473,2]
[400915393,1767862239788,-500.0,0.00013473,2]
[400915395,1767862239798,-500.0,0.00013473,2]
[400915397,1767862239807,-500.0,0.00013473,2]
[400915399,1767862239817,-500.0,0.00013473,2]
[400915401,1767862239826,-500.0,0.00013473,2]
[400915403,1767862239835,-500.0,0.00013473,2]
[400915405,1767862239844,-500.0,0.00013473,2]
[400915407,1767862239854,-500.0,0.00013473,2]
[400915409,1767862239863,-500.0,0.00013473,2]
[400915411,1767862239873,-500.0,0.00013473,2]
[400915414,1767862239882,-500.0,0.00013473,2]
[400915416,1767862239892,-500.0,0.00013473,2]
[400915417,1767862239901,-500.0,0.00013473,2]
[400915420,1767862239911,-500.0,0.00013473,2]
[400915422,1767862239921,-500.0,0.00013473,2]
[400915424,1767862239930,-500.0,0.00013473,2]
[400915425,1767862239939,-500.0,0.00013473,2]
[400915428,1767862239949,-500.0,0.00013473,2]
[400915430,1767862239958,-500.0,0.00013473,2]
[400915431,1767862239967,-498.61515312,0.00013473,2]
[400915433,1767862239977,-270.73180541,0.00013473,2]
[400915435,1767862239986,-500.0,0.00013473,2]
[400915438,1767862239995,-500.0,0.00013473,2]
[400915440,1767862240005,-500.0,0.00013473,2]
[400915441,1767862240014,-622.14655061,0.00013473,2]
[400915443,1767862240024,-500.0,0.00013473,2]
[400915445,1767862240033,-151.0,0.00013473,2]
[400915447,1767862240042,-500.0,0.00013473,2]
[400915449,1767862240052,-500.0,0.00013473,2]
[400915452,1767862240061,-578.20924308,0.00013473,2]
[400915454,1767862240071,-500.0,0.00013473,2]
[400915456,1767862240080,-500.0,0.00013473,2]
[400915458,1767862240089,-500.0,0.00013473,2]
[400915460,1767862240098,-500.0,0.00013473,2]
[400915462,1767862240107,-500.0,0.00013473,2]
[400915464,1767862240116,-500.0,0.00013473,2]
[400915466,1767862240125,-500.0,0.00013473,2]
[400915468,1767862240134,-500.0,0.00013473,2]
[400915469,1767862240143,-500.0,0.00013473,2]
[400915470,1767862240151,-500.0,0.00013473,2]
[400915471,1767862240160,-500.0,0.00013473,2]
[400915472,1767862240169,-500.0,0.00013473,2]
[400915473,1767862240179,-500.0,0.00013473,2]
[400915474,1767862240187,-500.0,0.00013473,2]
[400915475,1767862240196,-2000.0,0.00013473,2]
[400915476,1767862240206,-500.0,0.00013473,2]
[400915477,1767862240215,-2000.0,0.00013473,2]
[400915478,1767862240224,-169.1378307,0.00013473,2]
[400915479,1767862240234,-500.0,0.00013473,2]
[400915481,1767862240243,-2000.0,0.00013473,2]
[400915482,1767862240252,-500.0,0.00013473,2]
[400915483,1767862240261,-2000.0,0.00013473,2]
[400915484,1767862240270,-500.0,0.00013473,2]
[400915486,1767862240280,-2000.0,0.00013473,2]
[400915488,1767862240289,-500.0,0.00013473,2]
[400915490,1767862240299,-250.0,0.00013473,2]
[400915492,1767862240308,-2000.0,0.00013473,2]
[400915494,1767862240318,-500.0,0.00013473,2]
[400915496,1767862240327,-250.0,0.00013473,2]
[400915523,1767862240569,-2000.0,0.00013473,2]
[400915525,1767862240579,-321.91220307,0.00013473,2]
[400915527,1767862240589,-2000.0,0.00013473,2]
[400915529,1767862240599,-2000.0,0.00013473,2]
[400915531,1767862240608,-2000.0,0.00013473,2]
[400915533,1767862240617,-2000.0,0.00013473,2]
[400915535,1767862240626,-620.0,0.00013473,2]
[400915537,1767862240635,-1609.86,0.00013513,2]
[400915539,1767862240644,-457.10042703,0.0001355,2]
[400915541,1767862240654,-19504.07581079,0.00013621,2]
[400915543,1767862240667,-500.0,0.00013698,2]
[400915545,1767862240676,-500.0,0.00013698,2]
[400915547,1767862240685,-500.0,0.00013698,2]
[400915549,1767862240694,-500.0,0.00013698,2]
[400915551,1767862240704,-345.3210989,0.00013698,2]
[400915553,1767862240714,-500.0,0.00013698,2]
[400915555,1767862240723,-500.0,0.00013698,2]
[400915557,1767862240734,-500.0,0.00013698,2]
[400915559,1767862240743,-500.0,0.00013698,2]
[400915561,1767862240752,-500.0,0.00013698,2]
[400915563,1767862240761,-522.48563019,0.00013698,2]
[400915565,1767862240771,-514.77,0.00013698,2]
[400915567,1767862240779,-514.77,0.00013698,2]
[400915569,1767862240788,-514.77,0.00013698,2]
[400915571,1767862240798,-514.77,0.00013698,2]
[400915573,1767862240807,-500.0,0.00013698,2]
[400915575,1767862240816,-500.0,0.00013698,2]
[400915577,1767862240827,-500.0,0.00013698,2]
[400915579,1767862240836,-500.0,0.00013698,2]
[400915581,1767862240844,-500.0,0.00013698,2]
[400915583,1767862240854,-500.0,0.00013698,2]
[400915585,1767862240863,-517.44328219,0.00013698,2]
[400915587,1767862240872,-260.06429066,0.00013698,2]
[400915589,1767862240880,-500.0,0.00013698,2]
[400915591,1767862240889,-500.0,0.00013698,2]
[400915593,1767862240898,-500.0,0.00013698,2]
[400915595,1767862240908,-500.0,0.00013698,2]
[400915597,1767862240917,-500.0,0.00013698,2]
[400915598,1767862240927,-500.0,0.00013698,2]
[400915600,1767862240937,-500.0,0.00013698,2]
[400915603,1767862240946,-211.60955392,0.00013698,2]
[400915605,1767862240956,-500.0,0.00013698,2]
[400915607,1767862240965,-498.15528863,0.00013698,2]
[400915609,1767862240974,-500.0,0.00013698,2]
[400915611,1767862240983,-502.50439874,0.00013698,2]
[400915613,1767862240992,-500.0,0.00013698,2]
[400915615,1767862241001,-198.43935064,0.00013698,2]
[400915617,1767862241011,-500.0,0.00013698,2]
[400915618,1767862241021,-500.0,0.00013698,2]
[400915621,1767862241030,-184.55624416,0.00013698,2]
[400915623,1767862241039,-3895.88,0.00013699,2]
[400915625,1767862241048,-20829.4287158,0.00013722,2]
[400915626,1767862241058,-1609.86,0.00013787,2]
[400915629,1767862241067,-433.0,0.00013802,2]
[400915631,1767862241077,-150.0,0.00013849,2]
[400915633,1767862241086,-2351.0,0.00013919,2]
[400915635,1767862241096,-151.0,0.00013939,2]
[400915637,1767862241105,-587.0,0.00013967,2]
[400915639,1767862241114,-151.0,0.00013983,2]
[400915641,1767862241123,-200.0,0.00014,2]
[400915643,1767862241133,-2351.0,0.00014012,2]
[400915645,1767862241142,-157.22325972,0.00014021,2]
[400915647,1767862241152,-595.37131296,0.00014021,2]
[400915649,1767862241161,-217.15233878,0.00014021,2]
[400915651,1767862241172,-151.0,0.00014021,2]
[400915652,1767862241182,-151.0,0.00014056,2]
[400915655,1767862241192,-1100.0,0.00014059,2]
[400915657,1767862241201,-1609.86,0.00014061,2]
[400915659,1767862241210,-1000.0,0.00014134,2]
[400915661,1767862241221,-151.0,0.00014156,2]
[400915663,1767862241230,-151.0,0.00014158,2]
[400915664,1767862241239,-151.0,0.00014158,2]
[400915666,1767862241249,-335.18,0.00014197,2]
[400915668,1767862241259,-151.0,0.00014199,2]
[400915670,1767862241269,-199.19,0.00014199,2]
[400915672,1767862241278,-151.0,0.00014199,2]
[400915674,1767862241287,-151.0,0.00014199,2]
[400915676,1767862241296,-1000.85057695,0.00014252,2]
[400915678,1767862241305,-409.67528061,0.00014319,2]
[400915680,1767862241314,-19504.07581079,0.00014334,2]
[400915683,1767862241324,-1609.86,0.00014335,2]
[400915684,1767862241333,-604.6,0.00014347,2]
[400915687,1767862241344,-20829.4287158,0.00014418,2]
[400915689,1767862241353,-200.0,0.00014467,2]
[400915691,1767862241363,-617.40005154,0.00014569,2]
[400915693,1767862241374,-225.18697532,0.00014569,2]
[400915695,1767862241384,-151.0,0.00014569,2]
[400915696,1767862241393,-1609.86,0.00014608,2]
[400915698,1767862241402,-1100.0,0.00014762,2]
[400915700,1767862241412,-161.90897483,0.00014763,2]
[400915702,1767862241422,-167.54885661,0.00014763,2]
[400915704,1767862241431,-500.0,0.00014763,2]
[400915706,1767862241440,-500.22325222,0.00014763,2]
[400915709,1767862241450,-500.0,0.00014763,2]
[400915710,1767862241459,-500.0,0.00014763,2]
[400915713,1767862241468,-500.0,0.00014763,2]
[400915715,1767862241478,-552.68956986,0.00014763,2]
[400915717,1767862241487,-164.12535237,0.00014763,2]
[400915719,1767862241496,-500.0,0.00014763,2]
[400915721,1767862241505,-500.0,0.00014763,2]
[400915723,1767862241515,-500.0,0.00014763,2]
[400915724,1767862241524,-169.78239766,0.00014763,2]
[400915726,1767862241533,-500.0,0.00014763,2]
[400915728,1767862241542,-500.0,0.00014763,2]
[400915730,1767862241552,-536.85793514,0.00014763,2]
[400915732,1767862241561,-500.0,0.00014763,2]
[400915734,1767862241571,-500.0,0.00014763,2]
[400915737,1767862241581,-500.0,0.00014763,2]
[400915739,1767862241591,-500.0,0.00014763,2]
[400915741,1767862241600,-500.0,0.00014763,2]
[400915743,1767862241610,-500.0,0.00014763,2]
[400915745,1767862241620,-500.0,0.00014763,2]
[400915747,1767862241631,-500.0,0.00014763,2]
[400915749,1767862241640,-500.0,0.00014763,2]
[400915751,1767862241651,-165.70843486,0.00014763,2]
[400915753,1767862241664,-224.70175616,0.00014763,2]
[400915755,1767862241673,-500.0,0.00014763,2]
[400915757,1767862241683,-500.0,0.00014763,2]
[400915759,1767862241693,-500.0,0.00014763,2]
[400915761,1767862241703,-500.0,0.00014763,2]
[400915763,1767862241712,-500.0,0.00014763,2]
[400915765,1767862241723,-162.50130895,0.00014763,2]
[400915767,1767862241732,-500.0,0.00014763,2]
[400915770,1767862241742,-500.0,0.00014763,2]
[400915772,1767862241758,-500.0,0.00014763,2]
[400915774,1767862241767,-501.56644481,0.00014763,2]
[400915775,1767862241776,-486.22003068,0.00014763,2]
[400915778,1767862241785,-500.0,0.00014763,2]
[400915780,1767862241794,-166.27119183,0.00014763,2]
[400915782,1767862241804,-163.32215659,0.00014763,2]
[400915784,1767862241814,-500.0,0.00014763,2]
[400915786,1767862241823,-175.24655238,0.00014763,2]
[400915788,1767862241832,-169.07455586,0.00014763,2]
[400915790,1767862241841,-500.0,0.00014763,2]
[400915792,1767862241851,-500.0,0.00014763,2]
[400915794,1767862241860,-216.92080784,0.00014763,2]
[400915796,1767862241870,-500.0,0.00014763,2]
[400915798,1767862241879,-500.0,0.00014763,2]
[400915800,1767862241889,-500.0,0.00014763,2]
[400915802,1767862241898,-500.29238726,0.00014763,2]
[400915804,1767862241907,-500.0,0.00014763,2]
[400915806,1767862241916,-600.0,0.00014774,2]
[400915808,1767862241926,-286.25,0.00014774,2]
[400915810,1767862241936,-500.0,0.00014822,2]
[400915812,1767862241945,-334.5472959,0.00014842,2]
[400915814,1767862241955,-642.94,0.00014842,2]
[400915816,1767862241964,-1609.86,0.00014882,2]
[400915818,1767862241973,-19504.07581079,0.00015047,2]
[400915820,1767862241983,-500.0,0.00015068,2]
[400915822,1767862241992,-736.0,0.00015076,2]
[400915824,1767862242001,-20829.4287158,0.00015115,2]
[400915826,1767862242010,-640.24385345,0.00015117,2]
[400915828,1767862242020,-263.14162042,0.00015117,2]
[400915830,1767862242030,-175.29912762,0.00015117,2]
[400915833,1767862242039,-500.0,0.00015123,2]
[400915835,1767862242048,-1609.86,0.00015156,2]
[400915837,1767862242058,-1000.85057695,0.00015164,2]
[400915838,1767862242067,-500.0,0.00015178,2]
[400915840,1767862242076,-409.67528061,0.00015214,2]
[400915843,1767862242085,-522.31501888,0.00015232,2]
[400915844,1767862242095,-250.0,0.00015248,2]
[400915847,1767862242104,-678.97192272,0.00015262,2]
[400915848,1767862242114,-394.0,0.00015287,2]
[400915851,1767862242124,-503.33948311,0.0001531,2]
[400915852,1767862242134,-1000.0,0.0001531,2]
[400915855,1767862242143,-1000.0,0.0001531,2]
[400915856,1767862242153,-1000.0,0.0001531,2]
[400915859,1767862242163,-712.65120656,0.0001531,2]
[400915861,1767862242172,-500.44132788,0.0001531,2]
[400915863,1767862242184,-1000.0,0.0001531,2]
[400915865,1767862242194,-1000.0,0.0001531,2]
[400915867,1767862242203,-912.45872532,0.0001531,2]
[400915869,1767862242212,-1000.0,0.0001531,2]
[400915871,1767862242222,-1000.0,0.0001531,2]
[400915873,1767862242232,-166.61911688,0.0001531,2]
[400915875,1767862242242,-1000.0,0.0001531,2]
[400915877,1767862242251,-415.93260674,0.0001531,2]
[400915879,1767862242261,-1000.0,0.0001531,2]
[400915881,1767862242271,-1000.0,0.0001531,2]
[400915883,1767862242280,-1000.0,0.0001531,2]
[400915885,1767862242289,-1000.0,0.0001531,2]
[400915887,1767862242299,-1000.0,0.0001531,2]
[400915889,1767862242308,-812.00908556,0.0001531,2]
[400915891,1767862242318,-1000.0,0.0001531,2]
[400915893,1767862242327,-1000.0,0.0001531,2]
[400915895,1767862242337,-1000.0,0.0001531,2]
[400915897,1767862242347,-1000.0,0.0001531,2]
[400915899,1767862242357,-332.64752003,0.0001531,2]
[400915901,1767862242367,-1000.0,0.0001531,2]
[400915904,1767862242376,-1000.0,0.0001531,2]
[400915907,1767862242385,-539.89725373,0.0001531,2]
[400915909,1767862242395,-1000.0,0.0001531,2]
[400915911,1767862242405,-438.84534231,0.0001531,2]
[400915913,1767862242415,-1000.0,0.0001531,2]
[400915915,1767862242424,-500.3780208,0.0001531,2]
[400915918,1767862242434,-1000.0,0.0001531,2]
[400915920,1767862242443,-1000.0,0.0001531,2]
[400915922,1767862242453,-1106.18518596,0.00015322,2]
[400915924,1767862242462,-823.0,0.00015339,2]
[400915926,1767862242472,-3292.0,0.00015413,2]
[400915928,1767862242482,-1609.86,0.0001543,2]
[400915930,1767862242492,-335.18,0.00015482,2]
[400915932,1767862242506,-1100.0,0.000155,2]
[400915934,1767862242516,-1000.0,0.00015548,2]
[400915937,1767862242526,-663.93287602,0.00015665,2]
[400915939,1767862242535,-1609.86,0.00015704,2]
[400915940,1767862242545,-500.0,0.00015726,2]
[400915942,1767862242554,-19504.07581079,0.0001576,2]
[400915944,1767862242564,-604.6,0.00015782,2]
[400915946,1767862242573,-20829.4287158,0.00015811,2]
[400915948,1767862242583,-1530.62564826,0.00015858,2]
[400915950,1767862242592,-1500.0,0.00015858,2]
[400915952,1767862242602,-1500.0,0.00015858,2]
[400915954,1767862242611,-556.63084022,0.00015858,2]
[400915956,1767862242621,-822.81176918,0.00015858,2]
[400915959,1767862242630,-1500.0,0.00015858,2]
[400915960,1767862242640,-1500.0,0.00015858,2]
[400915963,1767862242651,-985.97149483,0.00015858,2]
[400915965,1767862242673,-1500.0,0.00015858,2]
[400915967,1767862242690,-1500.0,0.00015858,2]
[400915969,1767862242700,-1500.0,0.00015858,2]
[400915971,1767862242710,-1009.92734084,0.00015858,2]
[400915973,1767862242720,-1500.0,0.00015858,2]
[400915975,1767862242729,-1001.84542925,0.00015858,2]
[400915977,1767862242738,-1158.23019616,0.00015858,2]
[400915979,1767862242749,-413.69875704,0.00015858,2]
[400915981,1767862242758,-1500.0,0.00015858,2]
[400915983,1767862242768,-1500.0,0.00015858,2]
[400915985,1767862242777,-1511.09296657,0.00015858,2]
[400915987,1767862242787,-1500.0,0.00015858,2]
[400915989,1767862242796,-1500.0,0.00015858,2]
[400915990,1767862242805,-1500.0,0.00015858,2]
[400915991,1767862242815,-1500.0,0.00015858,2]
[400915992,1767862242824,-500.0,0.00015899,2]
[400915993,1767862242833,-514.77,0.00015899,2]
[400915994,1767862242844,-500.0,0.00015899,2]
[400915995,1767862242854,-500.0,0.00015899,2]
[400915996,1767862242863,-600.0,0.00015934,2]
[400915997,1767862242873,-286.25,0.00015934,2]
[400915998,1767862242882,-1609.86,0.00015978,2]
[400915999,1767862242893,-200.0,0.00016,2]
[400916000,1767862242902,-1000.85057695,0.00016076,2]
[400916001,1767862242912,-4977.36460907,0.000161,2]
[400916016,1767862243040,-409.67528061,0.00016109,2]
[400916018,1767862243051,-9999.99,0.00016116,2]
[400916020,1767862243060,-180.0,0.00016128,2]
[400916022,1767862243069,-150.0,0.000162,2]
[400916024,1767862243078,-5130.0,0.000162,2]
[400916026,1767862243087,-346.92554585,0.00016211,2]
[400916028,1767862243096,-666.72878,0.00016211,2]
[400916030,1767862243107,-599.60298507,0.00016212,2]
[400916032,1767862243116,-688.49839244,0.00016213,2]
[400916034,1767862243125,-150.0,0.00016246,2]
[400916036,1767862243134,-1609.86,0.00016252,2]
[400916038,1767862243143,-157.72323008,0.00016271,2]
[400916040,1767862243153,-150.0,0.00016292,2]
[400916042,1767862243162,-869.72272338,0.00016306,2]
[400916045,1767862243171,-5804.89645678,0.00016338,2]
[400916048,1767862243180,-124526.85863522,0.00016338,2]
[400916051,1767862243189,-150.0,0.00016338,2]
[400916053,1767862243198,-168.06650202,0.0001638,2]
[400916057,1767862243207,-150.0,0.00016385,2]
[400916059,1767862243216,-833.0,0.000164,2]
[400916062,1767862243225,-162.0,0.000164,2]
[400916065,1767862243234,-162.0,0.000164,2]
[400916068,1767862243244,-162.0,0.000164,2]
[400916070,1767862243253,-162.0,0.000164,2]
[400916072,1767862243262,-453.03832283,0.00016406,2]
[400916074,1767862243272,-1004.82287623,0.00016406,2]
[400916076,1767862243281,-665.71915277,0.00016406,2]
[400916078,1767862243290,-2000.0,0.00016406,2]
[400916079,1767862243299,-2000.0,0.00016406,2]
[400916081,1767862243308,-2000.0,0.00016406,2]
[400916083,1767862243318,-2000.0,0.00016406,2]
[400916085,1767862243327,-2000.0,0.00016406,2]
[400916087,1767862243336,-2000.0,0.00016406,2]
[400916089,1767862243348,-1133.20600999,0.00016406,2]
[400916091,1767862243357,-877.66780599,0.00016406,2]
[400916094,1767862243367,-2000.0,0.00016406,2]
[400916096,1767862243377,-2000.0,0.00016406,2]
[400916097,1767862243386,-2000.0,0.00016406,2]
[400916100,1767862243396,-365.49004457,0.00016423,2]
[400916102,1767862243406,-150.0,0.00016431,2]
[400916104,1767862243415,-500.0,0.00016437,2]
[400916106,1767862243424,-514.77,0.00016437,2]
[400916108,1767862243434,-500.0,0.00016437,2]
[400916110,1767862243444,-451.90263959,0.00016437,2]
[400916112,1767862243455,-500.0,0.00016438,2]
[400916114,1767862243464,-21086.94,0.00016438,2]
[400916116,1767862243475,-800.0,0.00016438,2]
[400916118,1767862243484,-500.0,0.00016456,2]
[400916120,1767862243493,-1252.0,0.00016465,2]
[400916122,1767862243503,-19504.07581079,0.00016474,2]
[400916124,1767862243513,-150.0,0.00016477,2]
[400916126,1767862243522,-500.0,0.00016493,2]
[400916128,1767862243531,-304.30680198,0.00016503,2]
[400916130,1767862243540,-20829.4287158,0.00016507,2]
[400916132,1767862243549,-150.0,0.00016523,2]
[400916134,1767862243559,-1609.86,0.00016526,2]
[400916136,1767862243569,-500.0,0.00016548,2]
[400916138,1767862243578,-150.0,0.00016569,2]
[400916140,1767862243588,-195.08159117,0.00016602,2]
[400916142,1767862243596,-150.0,0.00016615,2]
[400916144,1767862243606,-150.0,0.00016662,2]
[400916146,1767862243615,-150.0,0.00016708,2]
[400916148,1767862243624,-833.0,0.0001672,2]
[400916150,1767862243634,-833.0,0.0001672,2]
[400916151,1767862243643,-833.0,0.0001672,2]
[400916154,1767862243653,-833.0,0.0001672,2]
[400916155,1767862243664,-162.0,0.0001672,2]
[400916158,1767862243674,-833.0,0.0001672,2]
[400916160,1767862243686,-833.0,0.0001672,2]
[400916162,1767862243696,-1000.0,0.00016721,2]
[400916164,1767862243705,-1000.0,0.00016721,2]
[400916166,1767862243714,-1000.0,0.00016723,2]
[400916168,1767862243724,-500.0,0.0001674,2]
[400916170,1767862243734,-1000.0,0.00016746,2]
[400916172,1767862243743,-150.0,0.00016754,2]
[400916174,1767862243753,-713.97283296,0.00016761,2]
[400916176,1767862243762,-1000.0,0.00016767,2]
[400916178,1767862243771,-150.0,0.000168,2]
[400916180,1767862243780,-1609.96682616,0.000168,2]
[400916182,1767862243789,-157.72323008,0.00016813,2]
[400916184,1767862243798,-186.21,0.00016829,2]
[400916186,1767862243807,-1000.0,0.00016832,2]
[400916188,1767862243815,-1000.0,0.00016846,2]
[400916190,1767862243825,-1152.0,0.00016846,2]
[400916192,1767862243834,-150.0,0.00016846,2]
[400916194,1767862243843,-1000.0,0.00016848,2]
[400916196,1767862243852,-186.21,0.00016891,2]
[400916198,1767862243861,-150.0,0.00016892,2]
[400916200,1767862243871,-1000.0,0.00016897,2]
[400916201,1767862243879,-1000.0,0.000169,2]
[400916204,1767862243893,-1000.0,0.00016914,2]
[400916206,1767862243902,-150.0,0.00016938,2]
[400916208,1767862243911,-186.21,0.00016952,2]
[400916210,1767862243922,-4609.0,0.00016954,2]
[400916212,1767862243931,-2005.81602002,0.00016954,2]
[400916214,1767862243940,-2500.0,0.00016954,2]
[400916216,1767862243950,-2500.0,0.00016954,2]
[400916218,1767862243960,-2500.0,0.00016954,2]
[400916220,1767862243969,-2500.0,0.00016954,2]
[400916222,1767862243978,-2500.0,0.00016954,2]
[400916224,1767862243988,-2500.0,0.00016954,2]
[400916226,1767862243997,-2500.0,0.00016954,2]
[400916228,1767862244006,-2500.0,0.00016954,2]
[400916230,1767862244015,-1000.0,0.00016961,2]
[400916232,1767862244024,-150.0,0.00016985,2]
[400916234,1767862244033,-1000.0,0.00016987,2]
[400916236,1767862244043,-1000.85057695,0.00016988,2]
[400916238,1767862244051,-250.0,0.00017,2]
[400916240,1767862244061,-1000.0,0.00017014,2]
[400916242,1767862244070,-300.0,0.00017019,2]
[400916243,1767862244079,-1000.0,0.00017024,2]
[400916245,1767862244092,-150.0,0.00017031,2]
[400916247,1767862244101,-162.0,0.0001704,2]
[400916249,1767862244110,-162.0,0.0001704,2]
[400916250,1767862244119,-833.0,0.0001704,2]
[400916252,1767862244128,-162.0,0.0001704,2]
[400916254,1767862244137,-833.0,0.0001704,2]
[400916255,1767862244146,-833.0,0.0001704,2]
[400916257,1767862244155,-162.0,0.0001704,2]
[400916259,1767862244164,-833.0,0.0001704,2]
[400916261,1767862244174,-833.0,0.0001704,2]
[400916262,1767862244183,-833.0,0.0001704,2]
[400916264,1767862244192,-182.0,0.0001704,2]
[400916266,1767862244203,-833.0,0.0001704,2]
[400916267,1767862244212,-833.0,0.0001704,2]
[400916269,1767862244222,-300.0,0.00017054,2]
[400916271,1767862244230,-300.0,0.00017056,2]
[400916272,1767862244240,-300.0,0.00017067,2]
[400916274,1767862244249,-150.0,0.00017077,2]
[400916276,1767862244259,-300.0,0.00017089,2]
[400916278,1767862244268,-1561.43224408,0.0001709,2]
[400916280,1767862244281,-300.0,0.00017094,2]
[400916282,1767862244292,-2276.96201759,0.00017095,2]
[400916283,1767862244302,-20452.74518303,0.000171,2]
[400916285,1767862244312,-1000.0,0.000171,2]
[400916287,1767862244321,-500.0,0.00017102,2]
[400916289,1767862244330,-150.0,0.00017102,2]
[400916290,1767862244340,-500.0,0.00017102,2]
[400916292,1767862244350,-150.0,0.00017102,2]
[400916294,1767862244359,-500.0,0.00017102,2]
[400916295,1767862244368,-150.0,0.00017102,2]
[400916297,1767862244378,-150.0,0.00017102,2]
[400916299,1767862244389,-150.0,0.00017102,2]
[400916300,1767862244398,-150.0,0.00017102,2]
[400916302,1767862244407,-150.0,0.00017102,2]
[400916304,1767862244418,-500.0,0.00017102,2]
[400916306,1767862244427,-500.0,0.00017102,2]
[400916308,1767862244436,-150.6048441,0.00017102,2]
[400916309,1767862244445,-869.72272337,0.00017103,2]
[400916311,1767862244454,-300.0,0.00017104,2]
[400916313,1767862244463,-1246.4,0.00017105,2]
[400916314,1767862244472,-492.36,0.00017119,2]
[400916316,1767862244485,-300.0,0.00017121,2]
[400916318,1767862244494,-150.0,0.00017123,2]
[400916320,1767862244503,-1000.0,0.00017132,2]
[400916322,1767862244513,-300.0,0.00017137,2]
[400916323,1767862244523,-492.36,0.00017144,2]
[400916325,1767862244533,-300.0,0.00017155,2]
[400916327,1767862244542,-300.0,0.00017156,2]
[400916329,1767862244551,-500.0,0.00017157,2]
[400916331,1767862244561,-500.0,0.00017157,2]
[400916333,1767862244570,-233.66248833,0.00017157,2]
[400916335,1767862244581,-150.0,0.00017157,2]
[400916336,1767862244590,-500.0,0.00017157,2]
[400916338,1767862244599,-150.0,0.00017157,2]
[400916340,1767862244608,-150.0,0.00017157,2]
[400916342,1767862244617,-150.0,0.00017157,2]
[400916344,1767862244626,-150.0,0.00017157,2]
[400916345,1767862244635,-500.0,0.00017157,2]
[400916347,1767862244646,-150.0,0.00017157,2]
[400916349,1767862244655,-500.0,0.00017157,2]
[400916351,1767862244667,-1000.0,0.0001716,2]
[400916352,1767862244676,-300.0,0.00017161,2]
[400916354,1767862244686,-1000.0,0.00017161,2]
[400916356,1767862244696,-492.36,0.00017168,2]
[400916358,1767862244705,-150.0,0.00017169,2]
[400916360,1767862244715,-300.0,0.00017174,2]
[400916361,1767862244724,-300.0,0.00017174,2]
[400916363,1767862244735,-1000.0,0.00017176,2]
[400916365,1767862244744,-1246.4,0.00017186,2]
[400916367,1767862244754,-19504.07581079,0.00017187,2]
[400916369,1767862244763,-300.0,0.00017188,2]
[400916371,1767862244772,-1000.0,0.00017189,2]
[400916372,1767862244781,-300.0,0.00017191,2]
[400916374,1767862244791,-300.0,0.00017193,2]
[400916376,1767862244800,-1000.0,0.000172,2]
[400916378,1767862244810,-20829.4287158,0.00017204,2]
[400916380,1767862244822,-300.0,0.00017206,2]
[400916381,1767862244831,-300.0,0.00017206,2]
[400916383,1767862244842,-300.0,0.00017211,2]
[400916385,1767862244852,-500.0,0.00017212,2]
[400916387,1767862244861,-500.0,0.00017212,2]
[400916389,1767862244877,-150.0,0.00017212,2]
[400916392,1767862244890,-500.0,0.00017212,2]
[400916393,1767862244900,-150.0,0.00017212,2]
[400916395,1767862244909,-150.0,0.00017212,2]